[Event "Titled Tuesday Blitz July 18 Early 2023"]
[White "Alex_Sahakyan2006"]
[Black "Topalov, Aleksandar"]
[BlackFideId "925659"]
[WhiteElo "2693"]
[BlackElo "2387"]
[Result "1-0"]
[Round "1"]
[TimeControl "180+2"]
[Date "2023.07.18"]
[WhiteClock "0:01:57"]
[BlackClock "0:00:08"]
[Board "100"]

1. e4 {[%clk 0:02:56]}  e6 {[%clk 0:02:58]} 2. d4 {[%clk 0:02:54]}  d5 {[%clk 0:02:58]} 3. Bd3 {[%clk 0:02:54]}  dxe4 {[%clk 0:02:55]} 4. Bxe4 {[%clk 0:02:55]}  Nf6 {[%clk 0:02:55]} 5. Bf3 {[%clk 0:02:55]}  c5 {[%clk 0:02:54]} 6. Be3 {[%clk 0:02:54]}  cxd4 {[%clk 0:02:49]} 7. Qxd4 {[%clk 0:02:54]}  Qxd4 {[%clk 0:02:47]} 8. Bxd4 {[%clk 0:02:55]}  Nc6 {[%clk 0:02:47]} 9. Bxc6+ {[%clk 0:02:51]}  bxc6 {[%clk 0:02:47]} 10. Nf3 {[%clk 0:02:52]}  Ba6 {[%clk 0:02:44]} 11. Nbd2 {[%clk 0:02:45]}  c5 {[%clk 0:02:13]} 12. Bxf6 {[%clk 0:02:44]}  gxf6 {[%clk 0:02:12]} 13. O-O-O {[%clk 0:02:42]}  O-O-O {[%clk 0:02:06]} 14. Ne4 {[%clk 0:02:40]}  Be7 {[%clk 0:01:44]} 15. Rxd8+ {[%clk 0:02:38]}  Rxd8 {[%clk 0:01:42]} 16. Re1 {[%clk 0:02:39]}  Kc7 {[%clk 0:01:32]} 17. g3 {[%clk 0:02:26]}  h6 {[%clk 0:01:12]} 18. Nc3 {[%clk 0:02:23]}  Kc6 {[%clk 0:00:50]} 19. Nh4 {[%clk 0:02:19]}  Bf8 {[%clk 0:00:39]} 20. f4 {[%clk 0:02:10]}  f5 {[%clk 0:00:29]} 21. Nf3 {[%clk 0:02:10]}  Bg7 {[%clk 0:00:28]} 22. Ne5+ {[%clk 0:02:09]}  Bxe5 {[%clk 0:00:28]} 23. Rxe5 {[%clk 0:02:10]}  Rd4 {[%clk 0:00:20]} 24. b3 {[%clk 0:02:06]}  Kd6 {[%clk 0:00:18]} 25. Na4 {[%clk 0:01:59]}  Rd5 {[%clk 0:00:12]} 26. Re3 {[%clk 0:01:59]}  Bb5 {[%clk 0:00:10]} 27. Nc3 {[%clk 0:01:58]}  Rd4 {[%clk 0:00:08]} 28. Nxb5+ {[%clk 0:01:57]} 1-0


[Site "https://www.chess.com"]

[Event "Titled Tuesday Blitz July 18 Early 2023"]
[White "2KRK1"]
[Black "Prydun, Andriy"]
[BlackFideId "14145898"]
[WhiteElo "2684"]
[BlackElo "2384"]
[Result "1-0"]
[Round "1"]
[TimeControl "180+2"]
[Date "2023.07.18"]
[WhiteClock "0:00:03"]
[BlackClock "0:00:51"]
[Board "102"]

1. Nf3 {[%clk 0:02:54]}  d5 {[%clk 0:02:58]} 2. b3 {[%clk 0:02:54]}  Bg4 {[%clk 0:02:54]} 3. Bb2 {[%clk 0:02:52]}  Nd7 {[%clk 0:02:53]} 4. e3 {[%clk 0:02:52]}  e6 {[%clk 0:02:51]} 5. h3 {[%clk 0:02:51]}  Bh5 {[%clk 0:02:51]} 6. g4 {[%clk 0:02:49]}  Bg6 {[%clk 0:02:51]} 7. d3 {[%clk 0:02:50]}  h5 {[%clk 0:02:49]} 8. Rg1 {[%clk 0:02:47]}  hxg4 {[%clk 0:02:49]} 9. hxg4 {[%clk 0:02:48]}  a5 {[%clk 0:02:46]} 10. a3 {[%clk 0:02:40]}  c5 {[%clk 0:02:44]} 11. Nc3 {[%clk 0:02:31]}  Ne7 {[%clk 0:02:42]} 12. Nb5 {[%clk 0:02:28]}  Nc6 {[%clk 0:02:41]} 13. a4 {[%clk 0:02:07]}  e5 {[%clk 0:02:27]} 14. Bg2 {[%clk 0:01:55]}  Be7 {[%clk 0:02:24]} 15. Qe2 {[%clk 0:01:46]}  f6 {[%clk 0:01:38]} 16. O-O-O {[%clk 0:01:45]}  Nb6 {[%clk 0:01:38]} 17. Rh1 {[%clk 0:01:44]}  Rg8 {[%clk 0:01:37]} 18. Nh4 {[%clk 0:01:44]}  Bf7 {[%clk 0:01:36]} 19. Nf5 {[%clk 0:01:44]}  Bf8 {[%clk 0:01:35]} 20. f4 {[%clk 0:01:26]}  Qd7 {[%clk 0:01:32]} 21. fxe5 {[%clk 0:01:19]}  fxe5 {[%clk 0:01:25]} 22. Rdf1 {[%clk 0:01:00]}  O-O-O {[%clk 0:01:24]} 23. Nfd6+ {[%clk 0:00:52]}  Bxd6 {[%clk 0:01:24]} 24. Nxd6+ {[%clk 0:00:53]}  Qxd6 {[%clk 0:01:23]} 25. Rxf7 {[%clk 0:00:54]}  c4 {[%clk 0:01:22]} 26. dxc4 {[%clk 0:00:35]}  dxc4 {[%clk 0:01:21]} 27. Rd1 {[%clk 0:00:36]}  Qe6 {[%clk 0:01:15]} 28. Qf3 {[%clk 0:00:08]}  cxb3 {[%clk 0:01:09]} 29. Qf5 {[%clk 0:00:05]}  Qxf5 {[%clk 0:01:00]} 30. gxf5 {[%clk 0:00:06]}  Rdf8 {[%clk 0:00:58]} 31. Rxf8+ {[%clk 0:00:04]}  Rxf8 {[%clk 0:00:58]} 32. cxb3 {[%clk 0:00:03]}  Rxf5 {[%clk 0:00:51]} 33. Bh3 {[%clk 0:00:03]} 1-0


[Site "https://www.chess.com"]

[Event "Titled Tuesday Blitz July 18 Early 2023"]
[White "Slovineanu, Viacheslav"]
[Black "Itgelt, Khuyagtsogt"]
[WhiteFideId "13900510"]
[BlackFideId "4902912"]
[WhiteElo "2378"]
[BlackElo "2675"]
[Result "0-1"]
[Round "1"]
[TimeControl "180+2"]
[Date "2023.07.18"]
[WhiteClock "0:00:29"]
[BlackClock "0:01:31"]
[Board "105"]

1. d4 {[%clk 0:02:59]}  Nf6 {[%clk 0:03:00]} 2. Nf3 {[%clk 0:02:59]}  g6 {[%clk 0:03:00]} 3. c4 {[%clk 0:02:59]}  Bg7 {[%clk 0:03:00]} 4. Nc3 {[%clk 0:02:59]}  d5 {[%clk 0:03:01]} 5. cxd5 {[%clk 0:02:58]}  Nxd5 {[%clk 0:03:02]} 6. e4 {[%clk 0:02:58]}  Nxc3 {[%clk 0:03:02]} 7. bxc3 {[%clk 0:02:59]}  O-O {[%clk 0:03:03]} 8. Be2 {[%clk 0:02:46]}  c5 {[%clk 0:03:03]} 9. O-O {[%clk 0:02:40]}  b6 {[%clk 0:02:41]} 10. Bf4 {[%clk 0:02:28]}  Bb7 {[%clk 0:02:39]} 11. d5 {[%clk 0:02:17]}  Bxc3 {[%clk 0:02:36]} 12. Rc1 {[%clk 0:02:16]}  Bb2 {[%clk 0:02:34]} 13. Rc2 {[%clk 0:02:15]}  Bg7 {[%clk 0:02:34]} 14. Bc4 {[%clk 0:02:09]}  Qd7 {[%clk 0:02:11]} 15. Ne5 {[%clk 0:01:19]}  Qa4 {[%clk 0:02:09]} 16. Qe2 {[%clk 0:01:10]}  Ba6 {[%clk 0:01:52]} 17. Nd7 {[%clk 0:01:02]}  Bxc4 {[%clk 0:01:43]} 18. Rxc4 {[%clk 0:00:56]}  Qxd7 {[%clk 0:01:41]} 19. e5 {[%clk 0:00:56]}  Qxd5 {[%clk 0:01:40]} 20. Rd1 {[%clk 0:00:56]}  Qe6 {[%clk 0:01:37]} 21. Rc3 {[%clk 0:00:46]}  Nc6 {[%clk 0:01:36]} 22. Qe4 {[%clk 0:00:44]}  Rad8 {[%clk 0:01:35]} 23. Re1 {[%clk 0:00:44]}  Rd4 {[%clk 0:01:34]} 24. Qf3 {[%clk 0:00:43]}  Rfd8 {[%clk 0:01:34]} 25. Rce3 {[%clk 0:00:43]}  Nb4 {[%clk 0:01:33]} 26. R3e2 {[%clk 0:00:29]}  Nd3 {[%clk 0:01:31]} 0-1


[Site "https://www.chess.com"]

[Event "Titled Tuesday Blitz July 18 Early 2023"]
[White "Nouri, Alekhine"]
[Black "Mejia, Cherry Ann"]
[WhiteFideId "5216184"]
[BlackFideId "5206880"]
[WhiteElo "2675"]
[BlackElo "2377"]
[Result "1-0"]
[Round "1"]
[TimeControl "180+2"]
[Date "2023.07.18"]
[WhiteClock "0:01:05"]
[BlackClock "0:00:00"]
[Board "106"]

1. e4 {[%clk 0:02:56]}  c5 {[%clk 0:02:59]} 2. Nc3 {[%clk 0:02:49]}  a6 {[%clk 0:02:59]} 3. Nf3 {[%clk 0:02:45]}  b5 {[%clk 0:02:56]} 4. d4 {[%clk 0:02:45]}  cxd4 {[%clk 0:02:57]} 5. Nxd4 {[%clk 0:02:45]}  e6 {[%clk 0:02:52]} 6. Be3 {[%clk 0:02:45]}  Bb7 {[%clk 0:02:52]} 7. Bd3 {[%clk 0:02:45]}  Qc7 {[%clk 0:02:53]} 8. O-O {[%clk 0:02:45]}  Nf6 {[%clk 0:02:53]} 9. a3 {[%clk 0:02:45]}  Be7 {[%clk 0:02:53]} 10. f4 {[%clk 0:02:45]}  d6 {[%clk 0:02:53]} 11. Qe2 {[%clk 0:02:42]}  O-O {[%clk 0:02:53]} 12. Rae1 {[%clk 0:02:41]}  Nc6 {[%clk 0:02:52]} 13. h3 {[%clk 0:02:38]}  Rac8 {[%clk 0:02:52]} 14. Qf2 {[%clk 0:02:36]}  Rfe8 {[%clk 0:02:51]} 15. f5 {[%clk 0:02:31]}  e5 {[%clk 0:02:48]} 16. Nb3 {[%clk 0:02:31]}  b4 {[%clk 0:02:43]} 17. Nd5 {[%clk 0:02:21]}  Nxd5 {[%clk 0:02:39]} 18. exd5 {[%clk 0:02:22]}  Nb8 {[%clk 0:02:33]} 19. Bb6 {[%clk 0:02:13]}  Qd7 {[%clk 0:02:31]} 20. f6 {[%clk 0:01:47]}  Bxf6 {[%clk 0:02:30]} 21. Bf5 {[%clk 0:01:46]}  Qe7 {[%clk 0:02:31]} 22. Bxc8 {[%clk 0:01:45]}  Rxc8 {[%clk 0:02:32]} 23. axb4 {[%clk 0:01:46]}  Bxd5 {[%clk 0:02:32]} 24. Na5 {[%clk 0:01:40]}  Nc6 {[%clk 0:02:19]} 25. c4 {[%clk 0:01:35]}  Nxa5 {[%clk 0:02:01]} 26. cxd5 {[%clk 0:01:34]}  Nc4 {[%clk 0:01:54]} 27. Rc1 {[%clk 0:01:34]}  Qb7 {[%clk 0:01:53]} 28. Ba5 {[%clk 0:01:31]}  Bg5 {[%clk 0:00:46]} 29. Rc3 {[%clk 0:01:30]}  f6 {[%clk 0:00:27]} 30. Qc2 {[%clk 0:01:07]}  Qxd5 {[%clk 0:00:11]} 31. b3 {[%clk 0:01:07]}  Qd2 {[%clk 0:00:03]} 32. Qxd2 {[%clk 0:01:05]}  Bxd2 {[%clk 0:00:00]} 33. Rxc4 {[%clk 0:01:05]} 1-0


[Site "https://www.chess.com"]

[Event "Titled Tuesday Blitz July 18 Early 2023"]
[White "Chernyavsky, Alexander"]
[Black "Begmuratov, Alisher"]
[WhiteFideId "24131156"]
[BlackFideId "14203367"]
[WhiteElo "2363"]
[BlackElo "2672"]
[Result "0-1"]
[Round "1"]
[TimeControl "180+2"]
[Date "2023.07.18"]
[WhiteClock "0:00:09"]
[BlackClock "0:01:13"]
[Board "109"]

1. d4 {[%clk 0:02:59]}  Nf6 {[%clk 0:02:58]} 2. c4 {[%clk 0:02:59]}  e6 {[%clk 0:02:58]} 3. Nc3 {[%clk 0:02:59]}  Bb4 {[%clk 0:02:58]} 4. e3 {[%clk 0:02:58]}  O-O {[%clk 0:02:57]} 5. Ne2 {[%clk 0:02:56]}  d5 {[%clk 0:02:57]} 6. a3 {[%clk 0:02:57]}  Be7 {[%clk 0:02:57]} 7. Ng3 {[%clk 0:02:51]}  c5 {[%clk 0:02:56]} 8. cxd5 {[%clk 0:02:49]}  exd5 {[%clk 0:02:56]} 9. dxc5 {[%clk 0:02:46]}  Bxc5 {[%clk 0:02:57]} 10. b4 {[%clk 0:02:46]}  d4 {[%clk 0:02:57]} 11. bxc5 {[%clk 0:01:58]}  dxc3 {[%clk 0:02:57]} 12. Qxd8 {[%clk 0:01:45]}  Rxd8 {[%clk 0:02:57]} 13. Ne2 {[%clk 0:01:37]}  Ne4 {[%clk 0:02:42]} 14. f3 {[%clk 0:01:32]}  Nxc5 {[%clk 0:02:35]} 15. Nxc3 {[%clk 0:01:32]}  Nc6 {[%clk 0:02:32]} 16. Kf2 {[%clk 0:01:26]}  Nd3+ {[%clk 0:02:28]} 17. Bxd3 {[%clk 0:01:20]}  Rxd3 {[%clk 0:02:29]} 18. Ne2 {[%clk 0:01:20]}  Be6 {[%clk 0:02:16]} 19. e4 {[%clk 0:01:14]}  Rad8 {[%clk 0:02:04]} 20. Be3 {[%clk 0:01:12]}  Bc4 {[%clk 0:02:03]} 21. Rhc1 {[%clk 0:01:09]}  b5 {[%clk 0:01:58]} 22. Rc3 {[%clk 0:00:50]}  a5 {[%clk 0:01:31]} 23. Rac1 {[%clk 0:00:47]}  Ne5 {[%clk 0:01:28]} 24. Bf4 {[%clk 0:00:30]}  Rxc3 {[%clk 0:01:23]} 25. Rxc3 {[%clk 0:00:31]}  Nd3+ {[%clk 0:01:22]} 26. Ke3 {[%clk 0:00:31]}  Nb2 {[%clk 0:01:14]} 27. Rc2 {[%clk 0:00:09]}  Nd1# {[%clk 0:01:13]} 0-1


[Site "https://www.chess.com"]

[Event "Titled Tuesday Blitz July 18 Early 2023"]
[White "DCacheiro"]
[Black "Fajdetic, Hrvoje"]
[BlackFideId "14501945"]
[WhiteElo "2671"]
[BlackElo "2360"]
[Result "0-1"]
[Round "1"]
[TimeControl "180+2"]
[Date "2023.07.18"]
[WhiteClock "0:00:19"]
[BlackClock "0:01:34"]
[Board "112"]

1. d4 {[%clk 0:02:58]}  e6 {[%clk 0:02:58]} 2. c4 {[%clk 0:02:57]}  d5 {[%clk 0:02:58]} 3. Nf3 {[%clk 0:02:57]}  f5 {[%clk 0:02:58]} 4. g3 {[%clk 0:02:50]}  c6 {[%clk 0:02:58]} 5. Bg2 {[%clk 0:02:50]}  Nf6 {[%clk 0:02:59]} 6. O-O {[%clk 0:02:50]}  Bd6 {[%clk 0:02:59]} 7. b3 {[%clk 0:02:50]}  O-O {[%clk 0:02:58]} 8. Ba3 {[%clk 0:02:49]}  Ne4 {[%clk 0:02:58]} 9. Bxd6 {[%clk 0:02:33]}  Qxd6 {[%clk 0:02:59]} 10. Qc2 {[%clk 0:02:21]}  b6 {[%clk 0:02:59]} 11. Nbd2 {[%clk 0:02:21]}  a5 {[%clk 0:02:58]} 12. a3 {[%clk 0:02:09]}  Nd7 {[%clk 0:02:57]} 13. Rfc1 {[%clk 0:02:03]}  Ba6 {[%clk 0:02:55]} 14. e3 {[%clk 0:01:54]}  Rac8 {[%clk 0:02:54]} 15. Qb2 {[%clk 0:01:51]}  c5 {[%clk 0:02:51]} 16. cxd5 {[%clk 0:01:48]}  exd5 {[%clk 0:02:48]} 17. dxc5 {[%clk 0:01:24]}  bxc5 {[%clk 0:02:47]} 18. Rd1 {[%clk 0:01:11]}  Qf6 {[%clk 0:02:03]} 19. Qxf6 {[%clk 0:01:08]}  Ndxf6 {[%clk 0:01:58]} 20. Nxe4 {[%clk 0:01:07]}  dxe4 {[%clk 0:01:58]} 21. Ne5 {[%clk 0:00:56]}  Rfd8 {[%clk 0:01:46]} 22. Bf1 {[%clk 0:00:49]}  Bxf1 {[%clk 0:01:43]} 23. Kxf1 {[%clk 0:00:50]}  Nd5 {[%clk 0:01:40]} 24. Nc4 {[%clk 0:00:41]}  a4 {[%clk 0:01:38]} 25. bxa4 {[%clk 0:00:38]}  Nc3 {[%clk 0:01:38]} 26. Rxd8+ {[%clk 0:00:38]}  Rxd8 {[%clk 0:01:39]} 27. a5 {[%clk 0:00:37]}  Kf7 {[%clk 0:01:36]} 28. Rb1 {[%clk 0:00:19]}  Nxb1 {[%clk 0:01:34]} 0-1


[Site "https://www.chess.com"]

[Event "Titled Tuesday Blitz July 18 Early 2023"]
[White "Senft, Sean"]
[Black "Nagare Kaivalya Sandip"]
[WhiteFideId "2044960"]
[BlackFideId "25957929"]
[WhiteElo "2360"]
[BlackElo "2666"]
[Result "0-1"]
[Round "1"]
[TimeControl "180+2"]
[Date "2023.07.18"]
[WhiteClock "0:00:16"]
[BlackClock "0:00:35"]
[Board "113"]

1. d4 {[%clk 0:03:00]}  Nf6 {[%clk 0:02:58]} 2. c4 {[%clk 0:03:01]}  e6 {[%clk 0:02:58]} 3. Nc3 {[%clk 0:03:01]}  Bb4 {[%clk 0:02:58]} 4. Nf3 {[%clk 0:03:01]}  d5 {[%clk 0:02:55]} 5. Bg5 {[%clk 0:03:00]}  h6 {[%clk 0:02:55]} 6. Bh4 {[%clk 0:02:58]}  O-O {[%clk 0:02:48]} 7. e3 {[%clk 0:02:58]}  b6 {[%clk 0:02:45]} 8. cxd5 {[%clk 0:02:58]}  exd5 {[%clk 0:02:45]} 9. Bd3 {[%clk 0:02:58]}  Bb7 {[%clk 0:02:43]} 10. O-O {[%clk 0:02:56]}  Nbd7 {[%clk 0:02:43]} 11. Ne5 {[%clk 0:02:55]}  Be7 {[%clk 0:02:42]} 12. f4 {[%clk 0:02:55]}  c5 {[%clk 0:02:41]} 13. Rc1 {[%clk 0:02:53]}  a6 {[%clk 0:02:30]} 14. Bb1 {[%clk 0:02:40]}  Rc8 {[%clk 0:02:17]} 15. Rf3 {[%clk 0:02:29]}  cxd4 {[%clk 0:02:02]} 16. exd4 {[%clk 0:02:28]}  Ne4 {[%clk 0:02:02]} 17. Bxe7 {[%clk 0:02:23]}  Qxe7 {[%clk 0:02:02]} 18. Re3 {[%clk 0:02:08]}  Ndf6 {[%clk 0:01:34]} 19. Nxe4 {[%clk 0:02:00]}  dxe4 {[%clk 0:01:33]} 20. Rec3 {[%clk 0:01:45]}  Rxc3 {[%clk 0:01:26]} 21. Rxc3 {[%clk 0:01:44]}  Bd5 {[%clk 0:01:20]} 22. Qc1 {[%clk 0:01:32]}  Qb4 {[%clk 0:01:19]} 23. Qd2 {[%clk 0:01:23]}  Rd8 {[%clk 0:01:18]} 24. a3 {[%clk 0:01:20]}  Qd6 {[%clk 0:01:15]} 25. Rc1 {[%clk 0:01:10]}  Bb3 {[%clk 0:01:05]} 26. Rc3 {[%clk 0:01:00]}  Qxd4+ {[%clk 0:01:00]} 27. Qxd4 {[%clk 0:01:00]}  Rxd4 {[%clk 0:01:01]} 28. Rxb3 {[%clk 0:01:00]}  Rd1+ {[%clk 0:01:00]} 29. Kf2 {[%clk 0:01:01]}  Rxb1 {[%clk 0:00:59]} 30. Rxb6 {[%clk 0:01:01]}  Nd5 {[%clk 0:00:55]} 31. Rb8+ {[%clk 0:01:01]}  Kh7 {[%clk 0:00:54]} 32. Nxf7 {[%clk 0:01:01]}  e3+ {[%clk 0:00:35]} 33. Kf3 {[%clk 0:00:48]}  Rf1+ {[%clk 0:00:35]} 34. Ke2 {[%clk 0:00:45]}  Rf2+ {[%clk 0:00:35]} 35. Ke1 {[%clk 0:00:44]}  Nxf4 {[%clk 0:00:36]} 36. Re8 {[%clk 0:00:17]}  Nd3+ {[%clk 0:00:35]} 37. Kd1 {[%clk 0:00:16]}  Rd2# {[%clk 0:00:35]} 0-1


[Site "https://www.chess.com"]

[Event "Titled Tuesday Blitz July 18 Early 2023"]
[White "Aldokhin, Ivan"]
[Black "Peatman, Carter"]
[WhiteFideId "24115720"]
[BlackFideId "2096480"]
[WhiteElo "2663"]
[BlackElo "2355"]
[Result "1/2-1/2"]
[Round "1"]
[TimeControl "180+2"]
[Date "2023.07.18"]
[WhiteClock "0:00:08"]
[BlackClock "0:00:06"]
[Board "114"]

1. e4 {[%clk 0:02:55]}  e5 {[%clk 0:02:59]} 2. Nf3 {[%clk 0:02:55]}  Nf6 {[%clk 0:02:58]} 3. d4 {[%clk 0:02:55]}  Nxe4 {[%clk 0:02:55]} 4. Bd3 {[%clk 0:02:56]}  Nc6 {[%clk 0:02:52]} 5. dxe5 {[%clk 0:02:46]}  Nc5 {[%clk 0:02:40]} 6. Bb5 {[%clk 0:02:46]}  a6 {[%clk 0:02:37]} 7. Bxc6 {[%clk 0:02:45]}  dxc6 {[%clk 0:02:38]} 8. Qxd8+ {[%clk 0:02:44]}  Kxd8 {[%clk 0:02:38]} 9. Nc3 {[%clk 0:02:40]}  Be6 {[%clk 0:02:33]} 10. Be3 {[%clk 0:02:37]}  Be7 {[%clk 0:02:28]} 11. Ng5 {[%clk 0:02:21]}  Bxg5 {[%clk 0:02:10]} 12. Bxg5+ {[%clk 0:02:20]}  Kc8 {[%clk 0:02:11]} 13. Be3 {[%clk 0:02:00]}  Nd7 {[%clk 0:02:07]} 14. f4 {[%clk 0:02:00]}  b6 {[%clk 0:02:05]} 15. O-O-O {[%clk 0:02:00]}  Kb7 {[%clk 0:02:03]} 16. Ne4 {[%clk 0:01:58]}  h6 {[%clk 0:01:58]} 17. Rhf1 {[%clk 0:01:50]}  g6 {[%clk 0:01:49]} 18. Ng3 {[%clk 0:01:44]}  h5 {[%clk 0:01:43]} 19. h4 {[%clk 0:01:43]}  Bg4 {[%clk 0:01:37]} 20. Rd2 {[%clk 0:01:41]}  Rad8 {[%clk 0:01:36]} 21. Ne4 {[%clk 0:01:39]}  Bf5 {[%clk 0:01:32]} 22. Ng5 {[%clk 0:01:36]}  Be6 {[%clk 0:01:29]} 23. b3 {[%clk 0:01:12]}  c5 {[%clk 0:01:30]} 24. Rfd1 {[%clk 0:01:07]}  Kc8 {[%clk 0:01:29]} 25. c4 {[%clk 0:01:01]}  Nb8 {[%clk 0:01:29]} 26. Kc2 {[%clk 0:00:47]}  Nc6 {[%clk 0:01:29]} 27. Kc3 {[%clk 0:00:46]}  Ne7 {[%clk 0:01:18]} 28. Bf2 {[%clk 0:00:38]}  Nf5 {[%clk 0:01:16]} 29. a3 {[%clk 0:00:37]}  Ne7 {[%clk 0:01:04]} 30. b4 {[%clk 0:00:37]}  cxb4+ {[%clk 0:01:03]} 31. axb4 {[%clk 0:00:37]}  Rxd2 {[%clk 0:00:57]} 32. Rxd2 {[%clk 0:00:37]}  Rd8 {[%clk 0:00:57]} 33. Rxd8+ {[%clk 0:00:21]}  Kxd8 {[%clk 0:00:58]} 34. Kd4 {[%clk 0:00:17]}  Kc8 {[%clk 0:00:55]} 35. Kc3 {[%clk 0:00:18]}  Kb7 {[%clk 0:00:55]} 36. Ne4 {[%clk 0:00:17]}  Nc6 {[%clk 0:00:48]} 37. Ng5 {[%clk 0:00:10]}  a5 {[%clk 0:00:45]} 38. b5 {[%clk 0:00:08]}  Ne7 {[%clk 0:00:46]} 39. Nh7 {[%clk 0:00:05]}  c6 {[%clk 0:00:41]} 40. bxc6+ {[%clk 0:00:04]}  Nxc6 {[%clk 0:00:35]} 41. Ng5 {[%clk 0:00:05]}  Ka6 {[%clk 0:00:24]} 42. Ne4 {[%clk 0:00:05]}  a4 {[%clk 0:00:11]} 43. Nd6 {[%clk 0:00:04]}  Na5 {[%clk 0:00:11]} 44. Kb4 {[%clk 0:00:04]}  a3 {[%clk 0:00:10]} 45. Kxa3 {[%clk 0:00:04]}  Nxc4+ {[%clk 0:00:10]} 46. Kb4 {[%clk 0:00:05]}  Nxd6 {[%clk 0:00:08]} 47. exd6 {[%clk 0:00:06]}  Kb7 {[%clk 0:00:09]} 48. Kb5 {[%clk 0:00:06]}  Bd7+ {[%clk 0:00:09]} 49. Kb4 {[%clk 0:00:06]}  Kc6 {[%clk 0:00:10]} 50. Bd4 {[%clk 0:00:07]}  Be6 {[%clk 0:00:10]} 51. Be5 {[%clk 0:00:07]}  Bd5 {[%clk 0:00:08]} 52. g3 {[%clk 0:00:06]}  Be6 {[%clk 0:00:08]} 53. Kc3 {[%clk 0:00:06]}  Kd5 {[%clk 0:00:08]} 54. Kb4 {[%clk 0:00:06]}  Bd7 {[%clk 0:00:09]} 55. Kc3 {[%clk 0:00:04]}  b5 {[%clk 0:00:09]} 56. Kd3 {[%clk 0:00:04]}  Bf5+ {[%clk 0:00:08]} 57. Kc3 {[%clk 0:00:04]}  Bd7 {[%clk 0:00:08]} 58. Kb4 {[%clk 0:00:04]}  Ke4 {[%clk 0:00:08]} 59. Kc5 {[%clk 0:00:04]}  Kf5 {[%clk 0:00:08]} 60. Kb6 {[%clk 0:00:05]}  Ke6 {[%clk 0:00:08]} 61. Kc7 {[%clk 0:00:05]}  b4 {[%clk 0:00:08]} 62. Kb6 {[%clk 0:00:05]}  b3 {[%clk 0:00:09]} 63. Kc5 {[%clk 0:00:06]}  Kf5 {[%clk 0:00:07]} 64. Kb6 {[%clk 0:00:06]}  Ke6 {[%clk 0:00:07]} 65. Kc7 {[%clk 0:00:07]}  Ba4 {[%clk 0:00:06]} 66. Bb2 {[%clk 0:00:07]}  Bb5 {[%clk 0:00:06]} 67. Be5 {[%clk 0:00:08]}  Bd7 {[%clk 0:00:06]} 68. Bd4 {[%clk 0:00:08]}  Be8 {[%clk 0:00:06]} 69. Bc3 {[%clk 0:00:08]}  Ba4 {[%clk 0:00:06]} 70. Bb2 {[%clk 0:00:09]}  Bb5 {[%clk 0:00:06]} 71. Ba3 {[%clk 0:00:10]}  Ba4 {[%clk 0:00:06]} 72. Kd8 {[%clk 0:00:10]}  Bd7 {[%clk 0:00:06]} 73. Kc7 {[%clk 0:00:10]}  Ba4 {[%clk 0:00:06]} 74. Kb6 {[%clk 0:00:10]}  Bd7 {[%clk 0:00:06]} 75. Kc7 {[%clk 0:00:08]}  Ba4 {[%clk 0:00:06]} 1/2-1/2


[Site "https://www.chess.com"]

[Event "Titled Tuesday Blitz July 18 Early 2023"]
[White "Sovetbekova, Nurai"]
[Black "Rychagov, Andrey"]
[WhiteFideId "13801910"]
[BlackFideId "4119932"]
[WhiteElo "2355"]
[BlackElo "2662"]
[Result "0-1"]
[Round "1"]
[TimeControl "180+2"]
[Date "2023.07.18"]
[WhiteClock "0:00:03"]
[BlackClock "0:00:11"]
[Board "115"]

1. d4 {[%clk 0:02:54]}  f5 {[%clk 0:02:59]} 2. Bf4 {[%clk 0:02:49]}  Nf6 {[%clk 0:02:57]} 3. e3 {[%clk 0:02:48]}  e6 {[%clk 0:02:57]} 4. Nc3 {[%clk 0:02:45]}  d6 {[%clk 0:02:51]} 5. Nf3 {[%clk 0:02:45]}  Be7 {[%clk 0:02:51]} 6. Be2 {[%clk 0:02:45]}  O-O {[%clk 0:02:51]} 7. O-O {[%clk 0:02:45]}  Nh5 {[%clk 0:02:48]} 8. Bg3 {[%clk 0:02:42]}  Nxg3 {[%clk 0:02:41]} 9. hxg3 {[%clk 0:02:41]}  d5 {[%clk 0:02:42]} 10. Ne5 {[%clk 0:02:40]}  Nd7 {[%clk 0:02:40]} 11. f4 {[%clk 0:02:39]}  Nxe5 {[%clk 0:02:39]} 12. fxe5 {[%clk 0:02:38]}  c5 {[%clk 0:02:33]} 13. g4 {[%clk 0:02:34]}  cxd4 {[%clk 0:02:19]} 14. exd4 {[%clk 0:02:34]}  f4 {[%clk 0:02:19]} 15. Bd3 {[%clk 0:02:27]}  Bd7 {[%clk 0:02:17]} 16. Qf3 {[%clk 0:02:22]}  Bg5 {[%clk 0:02:15]} 17. Ne2 {[%clk 0:02:05]}  Qb6 {[%clk 0:02:09]} 18. Qh3 {[%clk 0:01:56]}  g6 {[%clk 0:02:08]} 19. Kf2 {[%clk 0:01:55]}  Rf7 {[%clk 0:01:48]} 20. Rh1 {[%clk 0:01:53]}  h6 {[%clk 0:01:04]} 21. Bxg6 {[%clk 0:01:43]}  Rg7 {[%clk 0:01:04]} 22. Bd3 {[%clk 0:01:35]}  Rf8 {[%clk 0:01:03]} 23. Qf3 {[%clk 0:01:32]}  Bb5 {[%clk 0:00:58]} 24. Bxb5 {[%clk 0:01:18]}  Qxb5 {[%clk 0:00:59]} 25. Qb3 {[%clk 0:01:10]}  Qc6 {[%clk 0:00:58]} 26. Ng1 {[%clk 0:01:06]}  f3 {[%clk 0:00:50]} 27. gxf3 {[%clk 0:01:02]}  Rc7 {[%clk 0:00:43]} 28. c3 {[%clk 0:01:00]}  Rcf7 {[%clk 0:00:43]} 29. Qd1 {[%clk 0:00:55]}  b5 {[%clk 0:00:41]} 30. a3 {[%clk 0:00:42]}  a5 {[%clk 0:00:41]} 31. Rh3 {[%clk 0:00:39]}  b4 {[%clk 0:00:40]} 32. axb4 {[%clk 0:00:38]}  axb4 {[%clk 0:00:40]} 33. Ne2 {[%clk 0:00:38]}  bxc3 {[%clk 0:00:39]} 34. bxc3 {[%clk 0:00:38]}  Rb8 {[%clk 0:00:37]} 35. Rb1 {[%clk 0:00:37]}  Ra8 {[%clk 0:00:38]} 36. Ra1 {[%clk 0:00:34]}  Raf8 {[%clk 0:00:38]} 37. Qd3 {[%clk 0:00:32]}  Kg7 {[%clk 0:00:34]} 38. Ra6 {[%clk 0:00:30]}  Qc8 {[%clk 0:00:32]} 39. Ra1 {[%clk 0:00:21]}  Rd7 {[%clk 0:00:32]} 40. Rah1 {[%clk 0:00:20]}  Ra7 {[%clk 0:00:30]} 41. Ng3 {[%clk 0:00:19]}  Ra2+ {[%clk 0:00:29]} 42. Ne2 {[%clk 0:00:20]}  Qc4 {[%clk 0:00:23]} 43. Qxc4 {[%clk 0:00:17]}  dxc4 {[%clk 0:00:23]} 44. Rb1 {[%clk 0:00:14]}  Rf7 {[%clk 0:00:20]} 45. Ke1 {[%clk 0:00:13]}  Rc2 {[%clk 0:00:18]} 46. Kd1 {[%clk 0:00:10]}  Rd2+ {[%clk 0:00:17]} 47. Ke1 {[%clk 0:00:11]}  Rd3 {[%clk 0:00:16]} 48. Kf2 {[%clk 0:00:10]}  Ra7 {[%clk 0:00:15]} 49. Rb2 {[%clk 0:00:09]}  Ra1 {[%clk 0:00:12]} 50. Rg3 {[%clk 0:00:09]}  Bh4 {[%clk 0:00:12]} 51. Kg2 {[%clk 0:00:08]}  Bxg3 {[%clk 0:00:12]} 52. Kxg3 {[%clk 0:00:08]}  Rad1 {[%clk 0:00:11]} 53. Kf4 {[%clk 0:00:08]}  R1d2 {[%clk 0:00:11]} 54. Rb7+ {[%clk 0:00:08]}  Kg6 {[%clk 0:00:11]} 55. Ng3 {[%clk 0:00:09]}  Rf2 {[%clk 0:00:11]} 56. Ke4 {[%clk 0:00:06]}  Rfxf3 {[%clk 0:00:11]} 57. Nh5 {[%clk 0:00:03]}  Rde3# {[%clk 0:00:11]} 0-1


[Site "https://www.chess.com"]